fUSD/lending_fUSD_20241223
["ID","MTS","AMOUNT","RATE_DAILY","PERIOD"]
[346385513,1734931850191,-10933.82,0.00019452,2]
[346385514,1734931850200,-2355.46,0.00019452,2]
[346385515,1734931850210,-500.0,0.00019452,2]
[346385516,1734931850219,-740.69,0.00019452,2]
[346385517,1734931850228,-1362.02,0.00019452,2]
[346385518,1734931850237,-5076.61,0.00019452,2]
[346385519,1734931850246,-500.0,0.00019452,2]
[346385520,1734931850255,-1738.84,0.00019452,2]
[346385521,1734931850266,-1312.18,0.00019452,2]
[346385522,1734931850275,-500.0,0.00019452,2]
[346385523,1734931850284,-500.0,0.00019452,2]
[346385524,1734931850294,-2594.01,0.00019452,2]
[346385525,1734931850304,-500.0,0.00019452,2]
[346385526,1734931850313,-532.57,0.00019452,2]
[346385527,1734931850323,-653.04,0.00019452,2]
[346385528,1734931850332,-3022.93,0.00019452,2]
[346385529,1734931850341,-611.45,0.00019452,2]
[346385530,1734931850350,-500.0,0.00019452,2]
[346385531,1734931850359,-500.0,0.00019452,2]
[346385532,1734931850369,-2747.21,0.00019452,2]
[346385533,1734931850378,-2539.83,0.00019452,2]
[346385534,1734931850387,-500.0,0.00019452,2]
[346385535,1734931850396,-3698.03,0.00019452,2]
[346385536,1734931850406,-4680.22,0.00019452,2]
[346385537,1734931850415,-660.63,0.00019452,2]
[346385538,1734931850424,-21431.66,0.00019452,2]
[346385539,1734931850433,-507.51636101,0.00019452,2]
[346385540,1734931850443,-500.0,0.00019452,2]
[346385541,1734931850452,-500.0,0.00019452,2]
[346385542,1734931850461,-1051.52,0.00019452,2]
[346385543,1734931850470,-667.72,0.00019452,2]
[346385544,1734931850479,-3391.2,0.00019452,2]
[346385545,1734931850489,-1291.97,0.00019452,2]
[346385546,1734931850498,-500.0,0.00019452,2]
[346385547,1734931850507,-4011.11,0.00019452,2]
[346385548,1734931850517,-500.0,0.00019452,2]
[346385549,1734931850527,-753.93,0.00019452,2]
[346385550,1734931850536,-1169.3,0.00019452,2]
[346385551,1734931850545,-2450.15,0.00019452,2]
[346385552,1734931850554,-500.0,0.00019452,2]
[346385553,1734931850563,-500.0,0.00019452,2]
[346385554,1734931850572,-2402.98,0.00019452,2]
[346385555,1734931850581,-9288.76,0.00019452,2]
[346385556,1734931850590,-2369.59,0.00019452,2]
[346385557,1734931850599,-500.0,0.00019452,2]
[346385558,1734931850608,-1928.76,0.00019452,2]
[346385559,1734931850617,-1354.85,0.00019452,2]
[346385560,1734931850627,-7550.08,0.00019452,2]
[346385561,1734931850636,-500.0,0.00019452,2]
[346385562,1734931850646,-500.0,0.00019452,2]
[346385563,1734931850657,-507.32,0.00019452,2]
[346385564,1734931850667,-2090.29,0.00019452,2]
[346385565,1734931850676,-500.0,0.00019452,2]
[346385566,1734931850685,-913.32,0.00019452,2]
[346385567,1734931850696,-504.43766124,0.00019452,2]
[346385568,1734931850705,-500.0,0.00019452,2]
[346385569,1734931850714,-500.0,0.00019452,2]
[346385570,1734931850726,-2331.66,0.00019452,2]
[346385571,1734931850735,-500.0,0.00019452,2]
[346385572,1734931850744,-500.0,0.00019452,2]
[346385573,1734931850755,-1054.84,0.00019452,2]
[346385574,1734931850764,-510.24736023,0.00019452,2]
[346385575,1734931850774,-4701.04,0.00019452,2]
[346385576,1734931850783,-500.0,0.00019452,2]
[346385577,1734931850792,-500.0,0.00019452,2]
[346385578,1734931850801,-545.1200332,0.00019452,2]
[346385579,1734931850810,-947.18,0.00019452,2]
[346385580,1734931850819,-500.0,0.00019452,2]
[346385581,1734931850828,-908.05,0.00019452,2]
[346385582,1734931850837,-500.0,0.00019452,2]
[346385583,1734931850846,-500.0,0.00019452,2]
[346385584,1734931850855,-500.0,0.00019452,2]
[346385585,1734931850864,-1461.8,0.00019452,2]
[346385586,1734931850873,-500.0,0.00019452,2]
[346385587,1734931850882,-500.0,0.00019452,2]
[346385588,1734931850891,-639.77,0.00019452,2]
[346385589,1734931850901,-4586.68,0.00019452,2]
[346385590,1734931850910,-500.0,0.00019452,2]
[346385591,1734931850919,-4068.61,0.00019452,2]
[346385592,1734931850929,-179.64962664,0.00019452,2]
[346385593,1734931850938,-500.0,0.00019452,2]
[346385594,1734931850947,-1818.33,0.00019452,2]
[346385595,1734931850956,-500.0,0.00019452,2]
[346385596,1734931850965,-1267.64,0.00019452,2]
[346385597,1734931850975,-500.0,0.00019452,2]
[346385598,1734931850984,-5139.77,0.00019452,2]
[346385599,1734931850993,-500.0,0.00019452,2]
[346385600,1734931851002,-500.0,0.00019452,2]
[346385601,1734931851012,-944.63,0.00019452,2]
[346385602,1734931851022,-506.78947005,0.00019452,2]
[346385603,1734931851031,-10782.92,0.00019452,2]
[346385604,1734931851041,-500.0,0.00019452,2]
[346385605,1734931851050,-671.86,0.00019452,2]
[346385606,1734931851059,-500.0,0.00019452,2]
[346385607,1734931851068,-513.61530572,0.00019452,2]
[346385608,1734931851077,-500.0,0.00019452,2]
[346385609,1734931851086,-500.0,0.00019452,2]
[346385610,1734931851095,-200.0,0.00019452,2]
[346385611,1734931851104,-2491.69159899,0.00019453,2]
[346385612,1734931851113,-6120.29660436,0.00019453,2]
[346385613,1734931851123,-150.42,0.00019453,2]
[346385614,1734931851133,-240.58549975,0.00019454,2]
[346385615,1734931851143,-4669.40829449,0.00019454,2]
[346385616,1734931851152,-200.0,0.00019457,2]
[346385617,1734931851162,-6120.29660436,0.00019457,2]
[346385618,1734931851172,-4669.40829449,0.00019457,2]
[346385619,1734931851181,-55939.05824548,0.00019459,2]
[346385620,1734931851190,-4685.88782363,0.00019459,2]
[346385621,1734931851199,-3525.7573943,0.0001946,2]
[346385622,1734931851208,-13880.64625133,0.0001946,2]
[346385623,1734931851217,-4685.88782363,0.0001946,2]
[346385624,1734931851226,-55939.05824548,0.0001946,2]
[346385625,1734931851235,-595.63587074,0.0001946,2]
[346385626,1734931851244,-3525.7573943,0.00019461,2]
[346385627,1734931851253,-240.58549975,0.00019462,2]
[346385628,1734931851262,-392.73925532,0.00019463,2]
[346385629,1734931851272,-3525.7573943,0.00019463,2]
[346385630,1734931851281,-392.73925532,0.00019464,2]
[346385631,1734931851290,-22038.34626466,0.00019465,2]
[346385632,1734931851299,-10487.07811421,0.00019465,2]
[346385633,1734931851308,-55939.05824548,0.00019466,2]
[346385634,1734931851317,-10487.07811421,0.00019466,2]
[346385635,1734931851326,-200.0,0.00019466,2]
[346385636,1734931851335,-13880.64625133,0.00019466,2]
[346385637,1734931851344,-595.63587074,0.00019469,2]
[346385638,1734931851353,-2491.69159899,0.00019471,2]
[346385639,1734931851362,-2491.69159899,0.00019471,2]
[346385640,1734931851500,-4669.40829449,0.00019472,2]
[346385641,1734931851510,-10487.07811421,0.00019472,2]
[346385642,1734931851520,-6120.29660436,0.00019472,2]
[346385643,1734931851531,-3525.7573943,0.00019472,2]
[346385644,1734931851540,-55939.05824548,0.00019473,2]
[346385645,1734931851548,-392.73925532,0.00019473,2]
[346385646,1734931851557,-6120.29660436,0.00019474,2]
[346385647,1734931851566,-595.63587074,0.00019474,2]
[346385648,1734931851575,-240.58549975,0.00019476,2]
[346385649,1734931851584,-392.73925532,0.00019476,2]
[346385650,1734931851593,-13880.64625133,0.00019477,2]
[346385651,1734931851602,-200.0,0.00019479,2]
[346385652,1734931851611,-362.55960572,0.00019479,2]
[346385653,1734931851620,-22038.34626466,0.00019479,2]
[346385654,1734931851629,-22038.34626466,0.0001948,2]
[346385655,1734931851639,-200.0,0.00019483,2]
[346385656,1734931851649,-4669.40829449,0.00019484,2]
[346385657,1734931851659,-200.0,0.00019485,2]
[346385658,1734931851668,-3525.7573943,0.00019485,2]
[346385659,1734931851677,-10487.07811421,0.00019485,2]
[346385660,1734931851687,-595.63587074,0.00019488,2]
[346385661,1734931851697,-392.73925532,0.00019488,2]
[346385662,1734931851706,-243.76550679,0.00019489,2]
[346385663,1734931851715,-1724.58961023,0.00019489,2]
[346385664,1734931851725,-6120.29660436,0.0001949,2]
[346385665,1734931851734,-240.58549975,0.00019491,2]
[346385666,1734931851743,-55939.05824548,0.00019492,2]
[346385667,1734931851753,-2491.69159899,0.00019492,2]
[346385668,1734931851763,-2007.0,0.00019493,2]
[346385669,1734931851773,-240.58549975,0.00019493,2]
[346385670,1734931851782,-200.0,0.00019494,2]
[346385671,1734931851791,-2491.69159899,0.00019494,2]
[346385672,1734931851800,-22038.34626466,0.00019496,2]
[346385673,1734931851809,-4685.88782363,0.00019496,2]
[346385674,1734931851818,-200.0,0.00019497,2]
[346385675,1734931851828,-13880.64625133,0.00019497,2]
[346385676,1734931851837,-4685.88782363,0.00019497,2]
[346385677,1734931851847,-200.0,0.00019497,2]
[346385678,1734931851856,-4685.88782363,0.00019498,2]
[346385679,1734931851866,-10487.07811421,0.00019498,2]
[346385680,1734931851875,-13880.64625133,0.00019499,2]
[346385681,1734931851884,-4669.40829449,0.000195,2]
[346385682,1734931851893,-150.0,0.000195,4]
[346385683,1734931851902,-38092.98930791,0.000195,2]
[346385684,1734931851911,-500.0,0.00019509,2]
[346385685,1734931851920,-500.0,0.00019527,2]
[346385686,1734931851929,-1000.0,0.00019534,2]
[346385687,1734931851938,-1000.0,0.00019534,2]
[346385688,1734931851947,-1000.0,0.00019534,2]
[346385689,1734931851956,-1000.0,0.00019534,2]
[346385690,1734931851965,-1000.0,0.00019534,2]
[346385691,1734931851974,-1000.0,0.00019534,2]
[346385692,1734931851983,-1000.0,0.00019534,2]
[346385693,1734931851992,-1000.0,0.00019534,2]
[346385694,1734931852002,-1000.0,0.00019534,2]
[346385695,1734931852011,-200.0,0.00019563,2]
[346385696,1734931852022,-500.0,0.00019576,2]
[346385697,1734931852031,-735.85,0.00019588,2]
[346385698,1734931852041,-52739.60756904,0.00019599,2]
[346385699,1734931852051,-1110.51780625,0.000196,2]
[346385700,1734931852060,-1041.53033222,0.000196,2]
[346385701,1734931852069,-1110.04071533,0.000196,2]
[346385702,1734931852078,-1085.66521128,0.000196,2]
[346385703,1734931852088,-1080.16064842,0.000196,2]
[346385704,1734931852097,-1502.21145756,0.000196,2]
[346385705,1734931852107,-164.25579756,0.000196,2]
[346385706,1734931852117,-164.25579756,0.000196,2]
[346385707,1734931852126,-164.25,0.000196,2]
[346385708,1734931852135,-362.55960572,0.00019613,2]
[346385709,1734931852144,-1557.13316612,0.00019626,2]
[346385710,1734931852153,-500.0,0.00019642,2]
[346385711,1734931852162,-2000.0,0.00019642,2]
[346385712,1734931852172,-500.0,0.00019642,2]
[346385713,1734931852181,-500.0,0.00019642,2]
[346385714,1734931852190,-200.0,0.00019642,2]
[346385715,1734931852199,-1557.13316611,0.00019656,2]
[346385716,1734931852209,-501.43939903,0.00019673,2]
[346385717,1734931852218,-504.92020399,0.00019673,2]
[346385718,1734931852227,-500.0,0.00019673,2]
[346385719,1734931852236,-500.42433932,0.00019673,2]
[346385720,1734931852246,-1557.13316611,0.00019687,2]
[346385721,1734931852256,-935357.3440451,0.000197,2]
[346385722,1734931852265,-3062.0,0.000197,2]
[346385723,1734931852275,-500.0,0.00019707,2]
[346385724,1734931852283,-150.0,0.00019714,4]
[346385725,1734931852293,-1557.13316611,0.00019717,2]
[346385726,1734931852301,-640.11227333,0.00019721,2]
[346385727,1734931852310,-1000.0,0.00019721,2]
[346385728,1734931852319,-21901.731157,0.00019723,2]
[346385729,1734931852328,-1080.62301612,0.00019723,2]
[346385730,1734931852337,-500.0,0.00019725,2]
[346385731,1734931852346,-260.50038924,0.00019725,2]
[346385732,1734931852355,-735.85,0.00019725,2]
[346385733,1734931852364,-1666.424729,0.00019726,2]
[346385734,1734931852373,-1779.979594,0.00019726,2]
[346385735,1734931852382,-500.0,0.00019726,2]
[346385736,1734931852391,-500.0,0.00019726,2]
[346385737,1734931852400,-500.0,0.00019726,2]
[346385738,1734931852409,-500.0,0.00019726,2]
[346385739,1734931852418,-500.0,0.00019726,2]
[346385740,1734931852427,-180.62580816,0.00019726,2]
[346385741,1734931852435,-500.0,0.00019726,2]
[346385742,1734931852444,-500.0,0.00019726,2]
[346385743,1734931852454,-500.0,0.00019726,2]
[346385744,1734931852463,-500.0,0.00019726,2]
[346385745,1734931852472,-553.00616927,0.00019726,2]
[346385746,1734931852481,-500.0,0.00019726,2]
[346385747,1734931852490,-500.0,0.00019726,2]
[346385748,1734931852499,-500.0,0.00019726,2]
[346385749,1734931852508,-500.0,0.00019726,2]
[346385750,1734931852518,-500.0,0.00019726,2]
[346385751,1734931852528,-370.92471052,0.00019726,2]
[346385752,1734931852537,-500.0,0.00019726,2]
[346385753,1734931852546,-500.0,0.00019726,2]
[346385754,1734931852555,-500.0,0.00019726,2]
[346385755,1734931852564,-500.0,0.00019726,2]
[346385756,1734931852573,-163.578394,0.00019726,2]
[346385757,1734931852582,-178.435043,0.00019726,2]
[346385758,1734931852591,-500.0,0.00019726,2]
[346385759,1734931852601,-500.0,0.00019726,2]
[346385760,1734931852610,-500.0,0.00019726,2]
[346385761,1734931852619,-500.0,0.00019726,2]
[346385762,1734931852628,-215.236961,0.00019726,2]
[346385763,1734931852636,-657.07,0.00019726,2]
[346385764,1734931852646,-500.0,0.00019726,2]
[346385765,1734931852657,-500.0,0.00019726,2]
[346385766,1734931852665,-679.97,0.00019726,2]
[346385767,1734931852674,-500.0,0.00019726,2]
[346385768,1734931852683,-500.0,0.00019726,2]
[346385769,1734931852694,-500.0,0.00019726,2]
[346385770,1734931852703,-1505.59,0.00019726,2]
[346385771,1734931852711,-500.0,0.00019726,2]
[346385772,1734931852721,-900.25,0.00019726,2]
[346385773,1734931852730,-944.35,0.00019726,2]
[346385774,1734931852739,-500.0,0.00019726,2]
[346385775,1734931852748,-1042.44,0.00019726,2]
[346385776,1734931852757,-1424.15,0.00019726,2]
[346385777,1734931852766,-517.17,0.00019726,2]
[346385778,1734931852775,-857.38,0.00019726,2]
[346385779,1734931852784,-500.0,0.00019726,2]
[346385780,1734931852793,-500.0,0.00019726,2]
[346385781,1734931852802,-500.0,0.00019726,2]
[346385782,1734931852811,-500.0,0.00019726,2]
[346385783,1734931852820,-500.0,0.00019726,2]
[346385784,1734931852829,-502.7,0.00019726,2]
[346385785,1734931852838,-554.75,0.00019726,2]
[346385786,1734931852847,-576.08,0.00019726,2]
[346385787,1734931852856,-500.0,0.00019726,2]
[346385788,1734931852865,-500.0,0.00019726,2]
[346385789,1734931852874,-500.0,0.00019726,2]
[346385790,1734931852883,-500.0,0.00019726,2]
[346385791,1734931852892,-500.0,0.00019726,2]
[346385792,1734931852901,-592.86417992,0.00019726,2]
[346385793,1734931852910,-500.0,0.00019726,2]
[346385794,1734931852919,-500.0,0.00019726,2]
[346385795,1734931852928,-718.91,0.00019726,2]
[346385796,1734931852937,-884.86,0.00019726,2]
[346385797,1734931852946,-500.0,0.00019726,2]
[346385798,1734931852955,-500.0,0.00019726,2]
[346385799,1734931852964,-500.0,0.00019726,2]
[346385800,1734931852973,-500.0,0.00019726,2]
[346385801,1734931852983,-500.0,0.00019726,2]
[346385802,1734931852992,-500.0,0.00019726,2]
[346385803,1734931853001,-639.82,0.00019726,2]
[346385804,1734931853010,-846.36,0.00019726,2]
[346385805,1734931853020,-500.0,0.00019726,2]
[346385806,1734931853031,-500.0,0.00019726,2]
[346385807,1734931853040,-500.0,0.00019726,2]
[346385808,1734931853049,-500.0,0.00019726,2]
[346385809,1734931853058,-500.0,0.00019726,2]
[346385810,1734931853067,-948.71,0.00019726,2]
[346385811,1734931853077,-500.0,0.00019726,2]
[346385812,1734931853087,-500.0,0.00019726,2]
[346385813,1734931853095,-718.2,0.00019726,2]
[346385814,1734931853105,-500.0,0.00019726,2]
[346385815,1734931853114,-500.0,0.00019726,2]
[346385816,1734931853123,-500.0,0.00019726,2]
[346385817,1734931853132,-500.0,0.00019726,2]
[346385818,1734931853141,-500.0,0.00019726,2]
[346385819,1734931853150,-500.0,0.00019726,2]
[346385820,1734931853159,-500.0,0.00019726,2]
[346385821,1734931853168,-507.16,0.00019726,2]
[346385822,1734931853177,-1017.04,0.00019726,2]
[346385823,1734931853186,-867.51,0.00019726,2]
[346385824,1734931853194,-500.0,0.00019726,2]
[346385825,1734931853203,-528.62,0.00019726,2]
[346385826,1734931853212,-500.0,0.00019726,2]
[346385827,1734931853222,-500.0,0.00019726,2]
[346385828,1734931853231,-569.25629171,0.00019726,2]
[346385829,1734931853240,-500.0,0.00019726,2]
[346385830,1734931853249,-500.0,0.00019726,2]
[346385831,1734931853258,-500.0,0.00019726,2]
[346385832,1734931853268,-500.0,0.00019726,2]
[346385833,1734931853276,-630.59,0.00019726,2]
[346385834,1734931853285,-549.74,0.00019726,2]
[346385835,1734931853294,-500.0,0.00019726,2]
[346385836,1734931853303,-780.48,0.00019726,2]
[346385837,1734931853312,-826.95,0.00019726,2]
[346385838,1734931853321,-500.0,0.00019726,2]
[346385839,1734931853330,-500.0,0.00019726,2]
[346385840,1734931853339,-500.0,0.00019726,2]
[346385841,1734931853348,-500.0,0.00019726,2]
[346385842,1734931853357,-624.84,0.00019726,2]
[346385843,1734931853366,-500.0,0.00019726,2]
[346385844,1734931853375,-500.0,0.00019726,2]
[346385845,1734931853384,-500.0,0.00019726,2]
[346385846,1734931853393,-500.0,0.00019726,2]
[346385847,1734931853401,-500.0,0.00019726,2]
[346385848,1734931853410,-513.25618304,0.00019726,2]
[346385849,1734931853420,-500.0,0.00019726,2]
[346385850,1734931853429,-500.0,0.00019726,2]
[346385851,1734931853438,-500.0,0.00019726,2]
[346385852,1734931853447,-500.0,0.00019726,2]
[346385853,1734931853456,-500.0,0.00019726,2]
[346385854,1734931853465,-500.0,0.00019726,2]
[346385855,1734931853474,-500.0,0.00019726,2]
[346385856,1734931853482,-500.0,0.00019726,2]
[346385857,1734931853491,-1687.56,0.00019726,2]
[346385858,1734931853625,-500.0,0.00019726,2]
[346385859,1734931853635,-500.0,0.00019726,2]
[346385860,1734931853644,-500.0,0.00019726,2]
[346385861,1734931853657,-500.0,0.00019726,2]
[346385862,1734931853666,-500.0,0.00019726,2]
[346385863,1734931853675,-508.19753719,0.00019726,2]
[346385864,1734931853684,-500.0,0.00019726,2]
[346385865,1734931853694,-500.0,0.00019726,2]
[346385866,1734931853703,-684.58,0.00019726,2]
[346385867,1734931853712,-500.0,0.00019726,2]
[346385868,1734931853722,-500.0,0.00019726,2]
[346385869,1734931853731,-510.11167111,0.00019726,2]
[346385870,1734931853740,-508.13775367,0.00019726,2]
[346385871,1734931853749,-500.0,0.00019726,2]
[346385872,1734931853759,-500.0,0.00019726,2]
[346385873,1734931853768,-753.57,0.00019726,2]
[346385874,1734931853790,-1091.4,0.00019726,2]
[346385875,1734931853799,-500.0,0.00019726,2]
[346385876,1734931853815,-500.0,0.00019726,2]
[346385877,1734931853824,-500.0,0.00019726,2]
[346385878,1734931853833,-500.0,0.00019726,2]
[346385879,1734931853842,-1152.55,0.00019726,2]
[346385880,1734931853851,-500.0,0.00019726,2]
[346385881,1734931853861,-500.0,0.00019726,2]
[346385882,1734931853870,-496.61111551,0.00019726,2]
[346385883,1734931853879,-511.01677945,0.00019726,2]
[346385884,1734931853888,-500.0,0.00019726,2]
[346385885,1734931853897,-500.0,0.00019726,2]
[346385886,1734931853906,-500.0,0.00019726,2]
[346385887,1734931853916,-2000.0,0.00019726,15]
[346385888,1734931853925,-507.2759883,0.00019726,2]
[346385889,1734931853934,-1151.76,0.00019726,2]
[346385890,1734931853943,-802.36,0.00019726,2]
[346385891,1734931853952,-963.0,0.00019726,2]
[346385892,1734931853962,-1039.93,0.00019726,2]
[346385893,1734931853971,-500.0,0.00019726,2]
[346385894,1734931853981,-500.0,0.00019726,2]
[346385895,1734931853991,-507.39217552,0.00019726,2]
[346385896,1734931854000,-773.86,0.00019726,2]
[346385897,1734931854010,-500.0,0.00019726,2]
[346385898,1734931854020,-981.87,0.00019726,2]
[346385899,1734931854030,-346.21976729,0.00019726,2]
[346385900,1734931854039,-639.35,0.00019726,2]
[346385901,1734931854049,-500.0,0.00019726,2]
[346385902,1734931854058,-500.0,0.00019726,2]
[346385903,1734931854068,-500.0,0.00019726,2]
[346385904,1734931854077,-500.0,0.00019726,2]
[346385905,1734931854086,-500.0,0.00019726,2]
[346385906,1734931854096,-500.0,0.00019726,2]
[346385907,1734931854105,-1110.45,0.00019726,2]
[346385908,1734931854116,-500.0,0.00019726,2]
[346385909,1734931854126,-500.0,0.00019726,2]
[346385910,1734931854135,-500.0,0.00019726,2]
[346385911,1734931854144,-425.72423612,0.00019726,2]
[346385912,1734931854153,-500.0,0.00019726,2]
[346385913,1734931854163,-500.0,0.00019726,2]
[346385914,1734931854172,-500.0,0.00019726,2]
[346385915,1734931854182,-561.56,0.00019726,2]
[346385916,1734931854191,-500.0,0.00019726,2]
[346385917,1734931854200,-500.0,0.00019726,2]
[346385918,1734931854209,-605.07966303,0.00019726,2]
[346385919,1734931854218,-500.0,0.00019726,2]
[346385920,1734931854227,-500.0,0.00019726,2]
[346385921,1734931854237,-596.28504444,0.00019726,2]
[346385922,1734931854246,-574.00231945,0.00019726,2]
[346385923,1734931854255,-500.0,0.00019726,2]
[346385924,1734931854265,-1191.17,0.00019726,2]
[346385925,1734931854274,-500.0,0.00019726,2]
[346385926,1734931854283,-500.0,0.00019726,2]
[346385927,1734931854292,-500.0,0.00019726,2]
[346385928,1734931854302,-500.0,0.00019726,2]
[346385929,1734931854312,-500.0,0.00019726,2]
[346385930,1734931854321,-500.0,0.00019726,2]
[346385931,1734931854330,-835.79,0.00019726,2]
[346385932,1734931854340,-500.0,0.00019726,2]
[346385933,1734931854349,-517.17,0.00019726,2]
[346385934,1734931854358,-500.0,0.00019726,2]
[346385935,1734931854368,-500.0,0.00019726,2]
[346385936,1734931854377,-1080.73,0.00019726,2]
[346385937,1734931854386,-631.87,0.00019726,2]
[346385938,1734931854395,-500.0,0.00019726,2]
[346385939,1734931854404,-500.0,0.00019726,2]
[346385940,1734931854414,-858.93,0.00019726,2]
[346385941,1734931854423,-500.0,0.00019726,2]
[346385942,1734931854433,-509.12568703,0.00019726,2]
[346385943,1734931854442,-1219.06,0.00019726,2]
[346385944,1734931854451,-982.96,0.00019726,2]
[346385945,1734931854460,-663.64,0.00019726,2]
[346385946,1734931854469,-964.4,0.00019726,2]
[346385947,1734931854478,-500.0,0.00019726,2]
[346385948,1734931854487,-500.0,0.00019726,2]
[346385949,1734931854496,-1549.06,0.00019726,2]
[346385950,1734931854505,-500.0,0.00019726,2]
[346385951,1734931854515,-1362.82,0.00019726,2]
[346385952,1734931854524,-793.53,0.00019726,2]
[346385953,1734931854534,-500.0,0.00019726,2]
[346385954,1734931854543,-500.0,0.00019726,2]
[346385955,1734931854552,-873.95,0.00019726,2]
[346385956,1734931854561,-1233.1,0.00019726,2]
[346385957,1734931854570,-500.0,0.00019726,2]
[346385958,1734931854582,-500.0,0.00019726,2]
[346385959,1734931854600,-500.0,0.00019726,2]
[346385960,1734931854615,-500.0,0.00019726,2]
[346385961,1734931854633,-1438.0,0.00019726,2]
[346385962,1734931854652,-1148.23,0.00019726,2]
[346385963,1734931854668,-500.0,0.00019726,2]
[346385964,1734931854681,-1241.74,0.00019726,2]
[346385965,1734931854697,-500.0,0.00019726,2]
[346385966,1734931854714,-1762.53,0.00019726,2]
[346385967,1734931854732,-1475.63,0.00019726,2]
[346385968,1734931854748,-814.81,0.00019726,2]
[346385969,1734931854765,-748.52,0.00019726,2]
[346385970,1734931854781,-1059.68,0.00019726,2]
[346385971,1734931854799,-4070.61,0.00019726,2]
[346385972,1734931854814,-500.0,0.00019726,2]
[346385973,1734931854827,-1639.91,0.00019726,2]
[346385974,1734931854845,-500.0,0.00019726,2]
[346385975,1734931854856,-500.0,0.00019726,2]
[346385976,1734931854871,-500.0,0.00019726,2]
[346385977,1734931854883,-1461.71,0.00019726,2]
[346385978,1734931854897,-871.56,0.00019726,2]
[346385979,1734931854910,-500.0,0.00019726,2]
[346385980,1734931854924,-500.0,0.00019726,2]
[346385981,1734931854937,-2540.93,0.00019726,2]
[346385982,1734931854951,-921.96,0.00019726,2]
[346385983,1734931854965,-500.0,0.00019726,2]
[346385984,1734931854979,-1034.57,0.00019726,2]
[346385985,1734931854992,-500.0,0.00019726,2]
[346385986,1734931855006,-877.08,0.00019726,2]
[346385987,1734931855020,-2898.89,0.00019726,2]
[346385988,1734931855033,-1856.0,0.00019726,2]
[346385989,1734931855047,-500.0,0.00019726,2]
[346385990,1734931855061,-2011.66,0.00019726,2]
[346385991,1734931855075,-335.27186232,0.00019726,2]
[346385992,1734931855089,-500.0,0.00019726,2]
[346385993,1734931855103,-500.0,0.00019726,2]
[346385994,1734931855116,-1772.94,0.00019726,2]
[346385995,1734931855131,-1442.63,0.00019726,2]
[346385996,1734931855145,-683.32,0.00019726,2]
[346385997,1734931855159,-2520.6,0.00019726,2]
[346385998,1734931855173,-1497.92,0.00019726,2]
[346385999,1734931855187,-982.46,0.00019726,2]
[346386000,1734931855199,-999.97,0.00019726,2]
[346386001,1734931855215,-1908.85,0.00019726,2]
[346386002,1734931855229,-500.0,0.00019726,2]
[346386003,1734931855243,-500.0,0.00019726,2]
[346386004,1734931855256,-2943.86,0.00019726,2]
[346386005,1734931855270,-500.0,0.00019726,2]
[346386006,1734931855284,-500.0,0.00019726,2]
[346386007,1734931855297,-500.0,0.00019726,2]
[346386008,1734931855311,-1979.77,0.00019726,2]
[346386009,1734931855325,-500.0,0.00019726,2]
[346386010,1734931855339,-12786.51,0.00019726,2]
[346386011,1734931855353,-1190.83,0.00019726,2]
[346386012,1734931855366,-2755.35,0.00019726,2]